bitfinex/quotes_SOLUSD_20241223
["timestamp","ask_amount","ask_price","bid_price","bid_amount"]
[1734969122355,0.12549,181.95,181.78,2.89883614]
[1734969122579,3.32722945,181.95,181.78,2.89883614]
[1734969122804,7.29606051,181.95,181.78,2.89883614]
[1734969122991,20.0,181.88,181.78,2.89883614]
[1734969123301,26.2576,181.87,181.78,2.89883614]
[1734969124095,20.0,181.87,181.78,2.89883614]
[1734969124274,20.0,181.89,181.78,2.89883614]
[1734969125565,20.0,181.89,181.79,13.7521]
[1734969126487,20.0,181.88,181.78,2.89883614]
[1734969127071,60.2,181.91,181.78,2.89883614]
[1734969127072,20.0,181.87,181.78,2.89883614]
[1734969127272,80.2,181.87,181.78,2.89883614]
[1734969127589,20.0,181.83,181.78,2.89883614]
[1734969130295,0.76649787,181.9,181.78,2.89883614]
[1734969130473,1.5402,181.93,181.78,2.89883614]
[1734969130874,8.35990696,181.94,181.79,40.45626558]
[1734969131196,22.027353,181.95,181.79,6.4097]
[1734969131579,2.7481,181.94,181.79,6.4097]
[1734969132212,0.12549,181.93,181.79,6.4097]
[1734969132600,2.7481,181.94,181.79,6.4097]
[1734969132782,23.776884,181.93,181.79,6.4097]
[1734969133188,20.0,181.92,181.8,13.7513]
[1734969133802,29.19792351,181.95,181.8,13.7513]
[1734969136076,20.0,181.91,181.8,13.7513]
[1734969136591,20.0,181.92,181.8,13.7513]
[1734969137092,31.94602351,181.95,181.79,8.001]
[1734969137093,20.0,181.91,181.79,8.001]
[1734969137406,20.0,181.86,181.78,2.89883614]
[1734969138069,22.027353,181.95,181.78,2.89883614]
[1734969138271,22.027353,181.95,181.79,34.04845816]
[1734969138680,22.027353,181.95,181.78,2.89883614]
[1734969138901,29.19792351,181.95,181.78,2.89883614]
[1734969139281,29.19792351,181.95,181.79,57.95083216]
[1734969139501,29.19792351,181.95,181.79,71.70293216]
[1734969139673,20.0,181.92,181.79,47.92604816]
[1734969140074,20.0,181.92,181.79,13.87759]
[1734969140286,20.0,181.92,181.78,2.89883614]
[1734969140482,20.0,181.92,181.79,13.7521]
[1734969141189,29.19792351,181.95,181.79,13.7521]
[1734969142092,26.650474,181.94,181.79,13.7521]
[1734969142290,26.524984,181.94,181.79,13.7521]
[1734969142593,20.0,181.91,181.78,2.89883614]
[1734969142796,20.0,181.89,181.78,2.89883614]
[1734969144291,20.0,181.91,181.78,2.89883614]
[1734969145711,20.0,181.91,181.78,16.65113614]
[1734969146491,60.32549,181.89,181.78,2.89883614]
[1734969146691,0.12549,181.82,181.68,6.2765]
[1734969146912,20.0,181.75,181.66,1.5668]
[1734969147122,20.0,181.74,181.64,17.93237955]
[1734969147287,20.0,181.72,181.64,3.8996]
[1734969147798,20.0,181.71,181.64,3.8996]
[1734969148116,23.776884,181.7,181.62,8.44925334]
[1734969148422,60.2,181.75,181.6,0.8335624]
[1734969148719,20.0,181.71,181.6,0.8335624]
[1734969149220,20.0,181.72,181.6,0.8335624]
[1734969149402,2.7504,181.8,181.65,34.04845816]
[1734969149582,8.02019274,181.83,181.68,34.04845816]
[1734969149788,6.36667365,181.84,181.68,34.04845816]
[1734969150028,60.2,181.83,181.65,34.04845816]
[1734969150324,8.02019274,181.82,181.64,40.35475816]
[1734969150498,8.02019274,181.82,181.66,34.04845816]
[1734969150687,8.02019274,181.82,181.66,13.7613]
[1734969151736,20.0,181.79,181.66,13.7613]
[1734969153200,8.02019274,181.82,181.66,13.7613]
[1734969153405,23.776884,181.81,181.66,13.7613]
[1734969153805,26.526984,181.81,181.64,6.3063]
[1734969154008,23.776884,181.79,181.64,6.3063]
[1734969154331,8.02019274,181.78,181.64,6.3063]
[1734969154795,20.0,181.75,181.64,6.3063]
[1734969155624,6.3063,181.74,181.64,6.3063]
[1734969155831,20.0,181.71,181.6,0.8335624]
[1734969157021,20.0,181.7,181.6,0.8335624]
[1734969159115,20.0,181.69,181.6,0.8335624]
[1734969160921,20.0,181.68,181.6,0.8335624]
[1734969161105,20.0,181.69,181.6,0.8335624]
[1734969161300,20.0,181.65,181.6,0.8335624]
[1734969162206,8.02019274,181.69,181.53,27.04587559]
[1734969163005,10.77209274,181.69,181.53,27.04587559]
[1734969163210,8.02019274,181.69,181.53,27.04587559]
[1734969163405,20.87360696,181.74,181.58,0.12549]
[1734969163612,14.32649274,181.74,181.59,21.00097559]
[1734969163812,14.32649274,181.74,181.57,21.00097559]
[1734969164127,14.38686639,181.73,181.55,21.00097559]
[1734969165237,20.0,181.7,181.56,13.7695]
[1734969165827,20.0,181.68,181.53,40.81757559]
[1734969166201,20.0,181.68,181.53,19.8166]
[1734969168128,20.0,181.67,181.53,19.8166]
[1734969168503,20.0,181.66,181.53,6.0449]
[1734969168711,14.72658061,181.73,181.53,6.0449]
[1734969168712,20.0,181.65,181.53,6.0449]
[1734969168924,20.0,181.65,181.54,13.771]
[1734969169124,2.7518,181.7,181.54,13.771]
[1734969169306,80.2,181.69,181.53,6.0449]
[1734969170427,2.752,181.68,181.53,6.0449]
[1734969172230,83.976884,181.67,181.53,6.0449]
[1734969172534,20.0,181.64,181.53,6.0449]
[1734969172908,60.2,181.67,181.53,6.0449]
[1734969172909,20.0,181.67,181.53,6.0449]
[1734969173111,20.0,181.67,181.54,13.771]
[1734969174317,20.0,181.7,181.54,13.771]
[1734969174911,2.7519,181.69,181.54,13.771]
[1734969175111,43.776884,181.68,181.53,6.0449]
[1734969176321,2.7522,181.67,181.53,6.0449]
[1734969177311,22.7522,181.67,181.53,6.0449]
[1734969177505,20.0,181.65,181.53,6.0449]
[1734969177731,20.0,181.64,181.53,6.0449]
[1734969178706,60.2,181.67,181.53,6.0449]
[1734969180621,2.7528,181.63,181.53,6.0449]
[1734969180821,1.67239262,181.66,181.53,6.0449]
[1734969181027,1.67239262,181.66,181.53,27.04587559]
[1734969181346,20.0,181.67,181.53,6.0449]
[1734969181544,2.7515,181.72,181.54,21.12646559]
[1734969181755,2.7515,181.72,181.56,21.00097559]
[1734969181943,2.7515,181.72,181.55,21.82676777]
[1734969182251,80.88530696,181.74,181.56,23.902374]
[1734969182427,14.66620696,181.74,181.59,1.6345]
[1734969182755,6.3063,181.74,181.6,13.7665]
[1734969183107,6.3063,181.74,181.61,0.12549]
[1734969183314,8.35990696,181.78,181.64,1.5002]
[1734969183513,8.35990696,181.78,181.64,22.50117559]
[1734969183740,14.292275,181.77,181.64,1.5002]
[1734969184626,14.292275,181.77,181.65,13.7627]
[1734969185035,7.6338961,181.81,181.65,13.7627]
[1734969185943,7.6338961,181.81,181.67,13.7612]
[1734969186240,8.35990696,181.86,181.73,6.4908]
[1734969186937,2.749,181.89,181.73,6.4908]
[1734969187115,2.749,181.89,181.74,21.00097559]
[1734969187311,68.55990696,181.92,181.77,1.6573]
[1734969187312,8.35990696,181.92,181.77,1.6573]
[1734969187614,8.35990696,181.92,181.78,27.49177559]
[1734969187819,8.35990696,181.93,181.78,27.49177559]
[1734969188197,8.35990696,181.93,181.79,21.00097559]
[1734969188842,2.7477,181.97,181.8,13.7513]
[1734969189035,20.0,181.95,181.8,13.7513]
[1734969189865,0.7149721,182.0,181.85,21.00097559]
[1734969190013,60.2,182.05,181.84,8.0419]
[1734969190224,60.8835624,182.06,181.89,21.00097559]
[1734969190422,0.6835624,182.06,181.92,21.00097559]
[1734969190745,0.6835624,182.06,181.94,21.00097559]
[1734969190921,0.6835624,182.06,181.97,1.5835]
[1734969191447,0.6835624,182.06,181.95,8.44925334]
[1734969191628,0.6835624,182.06,181.92,33.28724723]
[1734969191629,5.67464452,182.08,181.98,8.44925334]
[1734969191821,0.12549,182.04,181.95,8.44925334]
[1734969192233,0.12549,182.02,181.95,8.44925334]
[1734969192452,0.12549,182.0,181.92,33.28724723]
[1734969192631,20.0,181.96,181.92,33.28724723]
[1734969192834,20.0,181.94,181.92,33.28724723]
[1734969193246,20.0,181.94,181.85,6.4906]
[1734969193754,20.0,181.97,181.85,6.4906]
[1734969193952,20.0,181.96,181.85,6.4906]
[1734969195371,23.776884,181.95,181.82,1.5835]
[1734969195690,20.0,181.92,181.82,1.5835]
[1734969196028,23.776884,182.0,181.82,1.5835]
[1734969196228,20.0,181.97,181.82,1.5835]
[1734969197931,0.12549,181.96,181.82,1.5835]
[1734969198131,46.650174,181.96,181.82,1.5835]
[1734969199050,46.524684,181.96,181.82,1.5835]
[1734969200239,2.7481,181.94,181.82,1.5835]
[1734969201279,20.0,181.93,181.82,1.5835]
[1734969201655,20.0,181.92,181.82,1.5835]
[1734969202156,20.0,181.88,181.78,6.2669]
[1734969202353,20.0,181.87,181.78,6.2669]
[1734969204554,22.749,181.88,181.78,6.2669]
[1734969204761,20.0,181.84,181.78,6.2669]
[1734969204985,20.0,181.84,181.75,1.6122]
[1734969205259,20.0,181.84,181.71,6.1245]
[1734969205569,20.0,181.83,181.71,6.1245]
[1734969207480,2.7501,181.81,181.71,6.1245]
[1734969207679,20.0,181.82,181.71,6.1245]
[1734969208190,20.0,181.83,181.71,6.1245]
[1734969208496,20.0,181.83,181.68,1.6184]
[1734969208497,20.0,181.78,181.68,1.6184]
[1734969210199,20.0,181.76,181.64,6.2638]
[1734969210552,20.0,181.75,181.64,6.2638]
[1734969211469,22.7511,181.75,181.64,6.2638]
[1734969212482,20.0,181.74,181.64,6.2638]
[1734969213385,20.0,181.73,181.6,0.6835624]
[1734969213771,60.2,181.76,181.63,21.00097559]
[1734969213966,2.7505,181.79,181.66,8.2301]
[1734969215487,0.12549,181.78,181.6,7.1056624]
[1734969215661,23.902374,181.76,181.6,7.1056624]
[1734969215860,23.776884,181.74,181.6,7.1056624]
[1734969216077,8.253,181.75,181.6,7.1056624]
[1734969216283,5.16514955,181.73,181.6,28.10663799]
[1734969216491,20.0,181.7,181.6,7.1056624]
[1734969216805,2.751,181.75,181.6,28.10663799]
[1734969217099,2.751,181.75,181.6,7.1056624]
[1734969217602,0.12549,181.74,181.6,7.1056624]
[1734969217777,20.0,181.7,181.6,7.1056624]
[1734969217964,20.0,181.69,181.6,7.1056624]
[1734969218488,80.2,181.67,181.6,0.6835624]
[1734969218671,20.0,181.67,181.6,0.6835624]
[1734969219294,20.0,181.63,181.6,0.6835624]
[1734969219666,2.7523,181.67,181.6,0.6835624]
[1734969219876,2.7517,181.71,181.61,6.5883]
[1734969220082,60.2,181.76,181.65,21.00097559]
[1734969220393,60.2,181.74,181.63,21.00097559]
[1734969220613,0.12549,181.74,181.63,21.00097559]
[1734969220988,64.02488587,181.77,181.63,21.00097559]
[1734969221290,0.12549,181.76,181.63,21.00097559]
[1734969221489,2.751,181.75,181.65,21.00097559]
[1734969222772,20.0,181.73,181.65,21.00097559]
[1734969223089,20.0,181.73,181.69,21.00097559]
[1734969223501,20.0,181.73,181.67,21.00097559]
[1734969223800,22.7514,181.72,181.65,21.00097559]
[1734969224190,20.0,181.72,181.67,21.00097559]
[1734969226200,20.0,181.72,181.65,21.00097559]
[1734969226201,62.9516,181.71,181.65,21.00097559]
[1734969226387,7.11937357,181.75,181.67,21.00097559]
[1734969226388,20.0,181.68,181.67,21.00097559]
[1734969226702,20.0,181.72,181.67,21.00097559]
[1734969226899,20.0,181.72,181.69,21.00097559]
[1734969229497,20.0,181.76,181.69,21.00097559]
[1734969229700,21.000975,181.76,181.73,21.00097559]
[1734969229904,11.61585433,181.81,181.73,21.00097559]
[1734969230206,21.826572,181.8,181.73,21.00097559]
[1734969230386,60.2,181.76,181.68,21.00097559]
[1734969231206,20.0,181.73,181.68,21.00097559]
[1734969231503,20.0,181.73,181.63,1.5758]
[1734969231504,20.0,181.75,181.7,21.00097559]
[1734969231689,20.0,181.76,181.72,21.00097559]
[1734969231879,20.0,181.76,181.64,23.776884]
[1734969231880,21.826572,181.8,181.74,21.00097559]
[1734969232080,11.61585433,181.81,181.76,21.00097559]
[1734969232898,71.81585433,181.81,181.65,6.623]
[1734969233099,71.81585433,181.81,181.7,21.00097559]
[1734969233100,60.32549,181.78,181.7,21.00097559]
[1734969233277,20.0,181.76,181.7,21.00097559]
[1734969234322,20.0,181.76,181.68,21.00097559]
[1734969234610,20.0,181.76,181.7,21.00097559]
[1734969234782,20.0,181.75,181.7,21.00097559]
[1734969235620,20.0,181.75,181.65,6.623]
[1734969235621,20.0,181.76,181.72,21.00097559]
[1734969235791,20.0,181.77,181.72,21.00097559]
[1734969236284,18.7352279,181.81,181.72,21.00097559]
[1734969237016,2.7502,181.8,181.7,21.00097559]
[1734969237307,62.9502,181.8,181.7,21.00097559]
[1734969237801,20.0,181.77,181.7,21.00097559]
[1734969239888,20.0,181.77,181.68,21.00097559]
[1734969240213,20.0,181.77,181.7,21.00097559]
[1734969240409,2.7502,181.8,181.72,21.00097559]
[1734969240592,11.61585433,181.81,181.76,21.00097559]
[1734969240792,9.86857357,181.87,181.78,21.00097559]
[1734969241307,31.90211857,181.87,181.78,21.00097559]
[1734969241996,9.86857357,181.87,181.78,21.00097559]
[1734969242311,7.11937357,181.87,181.78,21.00097559]
[1734969242522,7.11937357,181.87,181.85,21.00097559]
[1734969242728,60.2,181.96,181.85,21.00097559]
[1734969242933,21.000976,181.96,181.89,21.00097559]
[1734969243234,74.53093429,181.98,181.89,21.00097559]
[1734969243431,95.53191029,181.98,181.89,21.00097559]
[1734969243725,32.58431029,181.98,181.89,21.00097559]
[1734969243929,20.0,181.95,181.89,21.00097559]
[1734969245227,20.0,181.95,181.87,27.60667559]
[1734969245531,20.0,181.95,181.87,6.6057]
[1734969245737,11.58333429,181.98,181.93,21.00097559]
[1734969245937,60.2,182.06,181.95,21.00097559]
[1734969246119,0.12549,182.05,181.95,21.00097559]
[1734969246544,60.2,182.04,181.93,21.00097559]
[1734969247422,20.0,182.01,181.93,21.00097559]
[1734969247751,20.0,182.0,181.93,21.00097559]
[1734969247957,20.0,182.0,181.95,21.00097559]
[1734969248155,62.9463,182.07,181.97,21.00097559]
[1734969248322,60.2,182.07,181.97,21.00097559]
[1734969248737,60.2,182.09,181.97,21.00097559]
[1734969249231,60.2,182.09,181.99,21.00097559]
[1734969249746,60.2,182.11,182.01,21.00097559]
[1734969249950,62.9452,182.14,182.05,21.00097559]
[1734969250255,2.7452,182.14,182.05,21.00097559]
[1734969251659,12.02971492,182.16,182.07,21.00097559]
[1734969252458,12.02971492,182.16,182.05,21.00097559]
[1734969252838,20.0,182.13,182.05,21.00097559]
[1734969253042,20.0,182.12,182.01,21.00097559]
[1734969253364,20.12549,182.11,181.99,21.00097559]
[1734969253523,20.0,182.11,182.03,21.00097559]
[1734969253725,62.9449,182.15,182.05,21.00097559]
[1734969253967,12.02971492,182.16,182.09,21.00097559]
[1734969254255,34.02600692,182.16,182.09,21.00097559]
[1734969254453,60.2,182.14,182.03,21.00097559]
[1734969254665,0.12549,182.11,182.01,1.5919]
[1734969254956,0.12549,182.11,181.98,6.0028]
[1734969255161,20.0,182.05,181.98,6.0028]
[1734969257166,60.32549,182.04,181.94,6.4154]
[1734969257331,20.0,182.01,181.94,6.4154]
[1734969257965,80.2,182.03,181.89,7.624]
[1734969258256,20.0,181.99,181.89,28.62497559]
[1734969259428,20.0,182.03,181.93,21.00097559]
[1734969259829,20.0,182.02,181.93,21.00097559]
[1734969260253,20.0,182.03,181.93,21.00097559]
[1734969260752,20.0,182.03,181.91,21.00097559]
[1734969263760,2.87239,182.02,181.91,21.00097559]
[1734969264443,22.87239,182.02,181.91,21.00097559]
[1734969265959,20.0,182.01,181.93,21.00097559]
[1734969266330,0.12549,182.0,181.9,23.776884]
[1734969266649,0.12549,182.0,181.89,28.62497559]
[1734969266853,20.0,182.01,181.93,21.00097559]
[1734969267154,20.0,182.04,181.93,21.00097559]
[1734969267333,20.0,182.03,181.93,21.00097559]
[1734969267532,20.0,182.03,181.91,21.00097559]
[1734969267759,20.0,182.02,181.91,21.00097559]
[1734969268463,20.0,182.02,181.93,21.00097559]
[1734969268464,20.0,182.01,181.93,21.00097559]
[1734969269167,20.0,182.01,181.91,21.00097559]
[1734969269869,20.0,182.01,181.9,23.776884]
[1734969270160,0.12549,181.98,181.89,6.0321]
[1734969271172,0.12549,181.98,181.85,21.00097559]
[1734969271342,20.0,181.94,181.84,28.73167559]
[1734969271855,20.12549,181.95,181.84,28.73167559]
[1734969272059,20.0,181.94,181.84,7.7307]
[1734969273057,20.0,181.94,181.83,23.776884]
[1734969273964,0.12549,181.93,181.83,23.776884]
[1734969274142,0.12549,181.93,181.81,21.00097559]
[1734969274456,82.9482,181.94,181.79,6.4582]
[1734969274457,20.0,181.88,181.79,6.4582]
[1734969274666,20.0,181.88,181.72,13.7571]
[1734969274667,0.12549,181.87,181.72,13.7571]
[1734969274854,20.0,181.84,181.74,21.00097559]
[1734969275368,20.0,181.85,181.74,21.00097559]
[1734969275743,0.12549,181.84,181.68,6.0891]
[1734969275956,0.12549,181.84,181.73,21.00097559]
[1734969276338,20.0,181.83,181.71,21.00097559]
[1734969276851,20.0,181.81,181.71,21.00097559]
[1734969278066,20.0,181.81,181.72,23.776884]
[1734969278288,20.0,181.83,181.72,23.776884]
[1734969279262,20.0,181.83,181.73,21.00097559]
[1734969279776,42.036055,181.83,181.76,23.776884]
[1734969280642,1.5878,181.89,181.79,23.776884]
[1734969281076,22.03107,181.86,181.77,23.776884]
[1734969281375,60.32549,181.85,181.72,21.00097559]
[1734969281941,0.12549,181.83,181.7,21.00097559]
[1734969282161,20.0,181.81,181.7,21.00097559]
[1734969282406,0.12549,181.8,181.67,21.00097559]
[1734969282897,0.12549,181.8,181.66,22.60607559]
[1734969283071,20.12549,181.82,181.66,22.60607559]
[1734969283287,6.56529,181.79,181.67,21.00097559]
[1734969283803,6.56529,181.79,181.68,21.00097559]
[1734969284608,6.56529,181.79,181.69,23.776884]
[1734969285698,6.4398,181.79,181.69,23.776884]
[1734969285863,66.6398,181.83,181.72,23.776884]
[1734969286067,6.4398,181.83,181.75,21.00097559]
[1734969286475,6.4398,181.83,181.76,23.776884]
[1734969286800,6.4398,181.83,181.76,44.77785959]
[1734969287773,6.4398,181.83,181.66,1.6051]
[1734969287774,6.4398,181.83,181.75,23.776884]
[1734969290019,6.4398,181.83,181.75,44.77785959]
[1734969290970,6.4398,181.83,181.76,21.00097559]
[1734969292499,6.4398,181.83,181.75,44.77785959]
[1734969292674,6.4398,181.83,181.76,21.00097559]
[1734969293205,60.2,181.85,181.76,21.00097559]
[1734969293908,60.2,181.85,181.77,21.00097559]
[1734969294104,60.2,181.85,181.78,21.00097559]
[1734969294314,22.03107,181.86,181.8,23.776884]
[1734969294687,22.03107,181.86,181.8,44.77785959]
[1734969294889,22.03107,181.86,181.8,23.776884]
[1734969295986,22.03107,181.86,181.82,23.776884]
[1734969296591,22.03107,181.86,181.82,44.77785959]
[1734969296789,22.03107,181.86,181.83,21.00097559]
[1734969296993,12.46617365,181.93,181.85,21.00097559]
[1734969297197,22.02625,181.9,181.85,21.00097559]
[1734969298393,22.02625,181.9,181.86,23.776884]
[1734969298596,6.0995,181.93,181.86,44.77785959]
[1734969298797,22.024203,181.92,181.86,44.77785959]
[1734969299798,22.024203,181.92,181.89,44.77785959]
[1734969300016,6.211,181.97,181.91,21.00097559]
[1734969300723,13.01897365,182.01,181.94,21.00097559]
[1734969300880,60.2,182.03,181.97,21.00097559]
[1734969301087,6.36667365,182.06,181.98,44.77785959]
[1734969301308,6.36667365,182.06,181.99,21.00097559]
[1734969301511,66.8523,182.09,182.01,44.77785959]
[1734969301807,80.13491451,182.13,182.03,44.77785959]
[1734969301981,19.93491451,182.13,182.07,23.776884]
[1734969302188,19.93491451,182.13,182.08,21.00097559]
[1734969302392,19.93491451,182.13,182.07,44.77785959]
[1734969302600,19.93491451,182.13,182.08,21.00097559]
[1734969302801,11.56108527,182.13,182.12,44.77785959]
[1734969302995,8.37382924,182.2,182.13,23.776884]
[1734969303199,8.37382924,182.2,182.13,44.77785959]
[1734969303405,8.37382924,182.2,182.17,21.00097559]
[1734969303592,0.6835624,182.24,182.19,23.776884]
[1734969304002,0.6835624,182.24,182.17,21.00097559]
[1734969304384,0.12549,182.21,182.13,23.776884]
[1734969304583,0.12549,182.21,182.1,23.776884]
[1734969305107,20.0,182.19,182.1,23.776884]
[1734969305423,20.0,182.14,182.06,44.77785959]
[1734969305606,20.0,182.14,182.05,21.00097559]
[1734969305987,20.0,182.09,182.03,21.00097559]
[1734969306184,20.0,182.07,182.0,21.00097559]
[1734969306392,20.0,182.07,181.99,21.00097559]
[1734969306607,20.0,182.07,182.0,21.00097559]
[1734969306806,60.2,182.05,181.97,21.00097559]
[1734969307125,20.0,182.02,181.97,21.00097559]
[1734969307501,20.0,182.03,181.97,21.00097559]
[1734969307711,2.7452,182.14,181.98,21.00097559]
[1734969307712,60.2,182.07,181.98,21.00097559]
[1734969307892,20.0,182.04,181.98,21.00097559]
[1734969308288,20.0,182.03,181.98,21.00097559]
[1734969308521,20.0,182.03,181.99,21.00097559]
[1734969308729,20.0,182.03,182.0,21.00097559]
[1734969309028,20.0,182.08,182.02,21.00097559]
[1734969309397,60.2,182.13,182.04,21.00097559]
[1734969309800,60.2,182.1,182.02,21.00097559]
[1734969309998,60.32549,182.09,182.01,21.00097559]
[1734969310528,60.2,182.08,182.0,21.00097559]
[1734969310692,20.0,182.1,182.02,21.00097559]
[1734969310897,20.0,182.11,182.03,21.00097559]
[1734969311107,20.0,182.1,182.03,21.00097559]
[1734969311931,20.0,182.1,182.01,21.00097559]
[1734969312134,20.0,182.02,181.97,21.00097559]
[1734969312337,20.0,182.02,181.95,21.00097559]
[1734969313353,20.0,182.02,181.97,21.00097559]
[1734969314120,20.0,182.02,181.95,21.00097559]
[1734969314757,20.0,182.02,181.97,21.00097559]
[1734969316047,20.0,182.02,181.95,21.00097559]
[1734969316261,20.0,181.97,181.87,6.2724]
[1734969316420,20.0,181.96,181.87,6.2724]
[1734969317244,20.0,181.97,181.87,6.2724]
[1734969318037,0.12549,181.96,181.85,1.633]
[1734969318220,20.0,181.93,181.87,21.00097559]
[1734969318426,20.0,181.93,181.85,22.63397559]
[1734969318742,20.0,181.93,181.85,21.00097559]
[1734969319534,20.0,181.92,181.84,21.00097559]
[1734969320437,20.0,181.92,181.83,21.00097559]
[1734969320766,20.0,181.92,181.82,21.00097559]
[1734969321058,60.2,181.91,181.81,21.00097559]
[1734969321231,20.0,181.88,181.81,21.00097559]
[1734969321860,60.2,181.91,181.81,21.00097559]
[1734969322064,20.0,181.88,181.77,21.00097559]
[1734969322264,20.0,181.84,181.75,21.00097559]
[1734969322427,20.0,181.83,181.73,21.00097559]
[1734969322627,20.0,181.82,181.74,21.00097559]
[1734969322962,20.0,181.82,181.77,21.00097559]
[1734969323257,20.0,181.86,181.79,21.00097559]
[1734969323660,20.0,181.88,181.79,21.00097559]
[1734969323857,20.0,181.88,181.77,21.00097559]
[1734969324226,20.0,181.86,181.78,21.00097559]
[1734969324625,20.0,181.85,181.78,21.00097559]
[1734969324827,20.0,181.85,181.8,21.00097559]
[1734969325052,60.2,181.92,181.81,21.00097559]
[1734969326241,60.2,181.91,181.82,21.00097559]
[1734969327037,61.7155,181.94,181.84,21.00097559]
[1734969327667,1.5155,181.94,181.82,21.00097559]
[1734969328378,20.0,181.9,181.82,21.00097559]
[1734969328763,20.0,181.89,181.82,21.00097559]
[1734969329086,20.0,181.86,181.8,44.77785959]
[1734969329575,20.0,181.89,181.82,21.00097559]
[1734969330275,20.0,181.89,181.84,21.00097559]
[1734969331076,35.56975494,182.01,181.85,23.776884]
[1734969331077,72.55337265,181.97,181.85,23.776884]
[1734969331250,72.55337265,181.97,181.86,21.00097559]
[1734969331251,20.0,181.92,181.86,21.00097559]
[1734969331449,20.0,181.92,181.84,21.00097559]
[1734969331675,20.0,181.92,181.85,23.776884]
[1734969332279,20.0,181.92,181.86,21.00097559]
[1734969333075,20.0,181.94,181.87,23.776884]
[1734969333276,12.35337265,181.97,181.87,23.776884]
[1734969333575,22.019218,181.96,181.87,23.776884]
[1734969334184,22.019218,181.96,181.88,21.00097559]
[1734969334950,20.0,181.93,181.86,21.00097559]
[1734969335187,20.0,181.93,181.84,21.00097559]
[1734969335386,20.0,181.92,181.82,21.00097559]
[1734969335788,22.019218,181.96,181.88,21.00097559]
[1734969336086,22.019218,181.96,181.9,21.00097559]
[1734969337678,22.019218,181.96,181.88,21.00097559]
[1734969338587,22.019218,181.96,181.89,23.776884]
[1734969339490,22.019218,181.96,181.9,21.00097559]
[1734969340593,20.0,181.99,181.9,21.00097559]
[1734969340773,20.0,181.98,181.9,21.00097559]
[1734969341091,20.0,181.97,181.91,23.776884]
[1734969341391,22.015599,182.0,181.92,21.00097559]
[1734969341883,6.4653,182.1,181.99,23.776884]
[1734969342064,22.004468,182.07,182.02,21.00097559]
[1734969342588,22.004468,182.07,181.98,21.00097559]
[1734969343289,22.004468,182.07,182.0,21.00097559]
[1734969343765,30.0,182.17,182.04,21.00097559]
[1734969343766,6.158,182.14,182.04,21.00097559]
[1734969344092,22.000068,182.11,182.07,23.776884]
[1734969344295,1.6068,182.16,182.07,23.776884]
[1734969344498,1.6068,182.16,182.06,21.00097559]
[1734969344660,21.995367,182.15,182.06,21.00097559]
[1734969344998,21.995367,182.15,182.1,21.00097559]
[1734969345180,1.6068,182.22,182.11,23.776884]
[1734969345389,21.000976,182.18,182.13,23.776884]
[1734969345576,6.8415624,182.24,182.13,23.776884]
[1734969345917,21.000976,182.23,182.14,21.00097559]
[1734969346092,21.000976,182.23,182.15,23.776884]
[1734969347168,0.6835624,182.24,182.16,21.00097559]
[1734969347370,0.6835624,182.24,182.18,21.00097559]
[1734969348088,0.6835624,182.24,182.19,23.776884]
[1734969348271,0.6835624,182.24,182.18,21.00097559]
[1734969348481,0.6835624,182.24,182.19,23.776884]
[1734969349495,0.12549,182.23,182.08,8.1871]
[1734969349791,0.12549,182.23,181.96,27.478]
[1734969349792,0.12549,182.19,182.05,21.00097559]
[1734969350299,0.12549,182.19,182.06,21.00097559]
[1734969350473,6.5089,182.18,182.05,21.00097559]
[1734969350672,20.0,182.15,182.05,21.00097559]
[1734969351195,20.0,182.15,182.06,21.00097559]
[1734969351395,66.7089,182.18,182.04,44.77785959]
[1734969351396,20.0,182.14,182.04,44.77785959]